[Event "Chinese League Div-A Rapid 2022"]
[Site "Fuling,Chongqing"]
[Date "2022.09.19"]
[Round "11.7"]
[White "Wang, Hao B"]
[Black "Xu, Zhihang"]
[Result "0-1"]
[ECO "C46"]
[WhiteElo "2165"]
[BlackElo "2489"]
[Annotator "TA"]
[PlyCount "92"]
[EventDate "2022.09.07"]
[EventType "team-tourn"]
[EventCountry "CHN"]
[SourceTitle "playchess.com"]
[Source "ChessBase"]
[SourceQuality "1"]
[TimeControl "1500+10"]

{[%evp 9,92,4,30,6,10,13,11,-1,0,0,16,0,0,0,0,3,0,-73,22,17,43,-50,0,0,3,-9,2,-43,51,48,71,47,78,78,78,43,40,41,40,40,134,132,120,70,79,21,66,35,75,47,159,153,183,168,267,134,131,60,75,0,21,0,91,-153,-168,-160,-131,-452,-448,-508,-493,-539,-475,-474,-467,-464,-456,-463,-441,-601,-646,-890,-574,-713,-335]} 1. e4 {[%emt 0:00:02]} e5 {[%emt 0:00:04]} 2. Nf3 {[%emt 0:00:05]} Nc6 {[%emt 0:00:01]} 3. Nc3 {[%emt 0:00:02]} g6 {[%emt 0:00:55]} 4. Bc4 {[%emt 0:00:18]} Bg7 {[%emt 0:00:05]} 5. d3 {[%emt 0:00:05]} Nf6 {[%emt 0:00:45] CPLX 2.1 26 (Nc6-a5) (=26)} 6. Be3 {[%emt 0:00:48] CPLX 2.1 24 (a2-a4) (=24). C46: 3 Nc3: Unusual Black 3rd moves.} d6 {[%emt 0:00:14] CPLX 2.1 4 (0-0) (=15)} 7. h3 {[%emt 0:00:05] CPLX 2.2 0 (a2-a4) (=12)} Na5 {[%emt 0:01:26] [#] BESTDEEP} 8. Qd2 $146 {[%emt 0:00:36] CPLX 2.5 12 (a2-a4) (=12). The position is equal.} ({Predecessor:} 8. Bb3 Nxb3 9. axb3 a6 10. O-O O-O 11. Qd2 Be6 12. Ng5 Qe7 13. f4 exf4 14. Bxf4 {0-1 (39) Fjallheim,L (1527)-Baldvinsson,L (1961) Runavik 2016}) 8... Nxc4 {[%emt 0:00:02] CPLX 2.6 1 (b7-b6) (=8)} 9. dxc4 {[%emt 0:00:01] RECAPT} Be6 {[%emt 0:00:16] CPLX 2.1 16 (b7-b6) (=9)} 10. b3 {[%emt 0:00:04] CPLX 2.1 16 (Qd2-e2) (=10)} a6 {[%emt 0:02:23] CPLX 2.1} 11. a4 {[%emt 0:02:09] CPLX 2.1 0 (0-0) (=9)} h6 {[%emt 0:01:05] CPLX 2.1 0 (b7-b5) (=7)} 12. Qd3 {[%emt 0:03:02] CPLX 2.1 0 (0-0-0) (=7)} O-O {[%emt 0:00:29] CPLX 2.1 0 (Nf6-d7) (=6)} 13. g4 {[%emt 0:01:11] RELBLUND 73 (0-0-0) (=16)} (13. O-O-O $11) 13... Nd7 {[%emt 0:00:39] MISSDEEP-b7-b5 95 (b7-b5) (=16)} (13... b5 $1 $17) 14. O-O-O {[%emt 0:00:22] CPLX 2.3 5 (Rh1-g1) (=14)} Kh7 {[%emt 0:00:17] CPLX 2.3 26 (Qd8-e7) (=17)} 15. Rdg1 {[%emt 0:03:19] RELBLUND 93 (Rh1-g1) (=22)} (15. Rhg1 $14) 15... Qe7 {[%emt 0:01:12] MISSDEEP-c7-c6 50 (c7-c6) (=20)} (15... c6 $1 $15) 16. Nd5 {[%emt 0:02:12] CPLX 2.5 0 (a4-a5) (=20)} Bxd5 {[%emt 0:00:10] CPLX 3.1} (16... Qd8 {with more complications.} 17. a5 b5 18. axb6 cxb6 19. h4 Nc5) 17. cxd5 {[%emt 0:00:02] RECAPT} c6 {[%emt 0:01:04] BESTDEEP} 18. Rd1 {[%emt 0:01:46] CPLX 2.4 45 (g4-g5) (=21)} c5 {[%emt 0:00:23] RELBLUND 94 (Rf8-c8) (=22)} (18... Rfc8 $15) 19. Nd2 $14 {[%emt 0:02:55] DEEPSTRONG=>BLUNDERREACT} b6 {[%emt 0:00:23] CPLX 2.0 23 (Rf8-b8) (=22)} 20. h4 {[%emt 0:02:14][%cal Bh3h4,Bh4h5][%mdl 32] CPLX 2.0 24 (Kc1-b2) (=19)} Rfb8 {[%emt 0:00:17] CPLX 2.2 31 (b6-b5) (=23)} 21. h5 {[%emt 0:01:41] aiming for hxg6+. CPLX 2.1} g5 {[%emt 0:00:01] BESTDEEP} 22. Nf1 {[%emt 0:00:33] CPLX 2.2 35 (Nd2-c4) (=19)} b5 {[%emt 0:00:04] EASY} 23. axb5 {[%emt 0:00:32] CPLX 2.5} axb5 {[%emt 0:00:02] RECAPT 0 (Qe7-d8) (=19)} 24. Kd2 {[%emt 0:00:01] BESTDEEP} c4 {[%emt 0:01:44] RELBLUND 94 (Qe7-d8) (=23)} ({Black should play} 24... Qd8 $14) 25. bxc4 $16 {[%emt 0:00:02] EASY} bxc4 {[%emt 0:00:02] CPLX 2.9 0 (b5-b4) (=22)} 26. Qxc4 {[%emt 0:00:01] RECAPT 50 (Qd3-c3) (=18)} (26. Qc3 $16) 26... Rc8 {[%emt 0:00:07] CPLX 2.8 9 (Qe7-d8) (=21)} 27. Qd3 {[%emt 0:00:09] RELBLUND 58 (Qc4-b3) (=20)} (27. Qb3 $16) 27... Ra4 {[%emt 0:01:22][%cal Oa4d4] CPLX 3.1 45 (Qe7-d8) (=22)} (27... Qd8 {is more complex.} 28. Rc1 Ra2 29. Ng3 Qa5+) 28. Ke1 {[%emt 0:00:24] CPLX 3.3 31 (Nf1-g3) (=20)} (28. Ng3 $5 {[%cal Rd1a1]}) 28... Rac4 {[%emt 0:00:13] CPLX 2.7 40 (Ra4-d4) (=23)} 29. Rc1 {[%emt 0:00:11] CPLX 2.7 28 (Rd1-d2) (=21)} (29. Rd2 $5 {[%cal Rf1g3]}) 29... Nb8 {[%emt 0:03:06] MISS-Rc4-c3 112 (Rc4-c3) (=27)} (29... Rc3 $14 30. Qe2 Nf6) 30. c3 {[%emt 0:00:44] CPLX 2.6 6 (Nf1-g3) (=20)} Qc7 {[%emt 0:01:38] CPLX 2.6 30 (Qe7-d7) (=27)} 31. Ng3 {[%emt 0:00:22] CPLX 2.7 15 (Ke1-e2) (=20)} Na6 {[%emt 0:00:40] CPLX 2.9 99 (Bg7-f8) (=29)} (31... Bf8 $142 32. Nf5 Nd7) 32. Ne2 {[%emt 0:00:09] CPLX 2.9 133 (Rc1-a1) (=24)} (32. Ra1 $18) 32... Ra4 {[%emt 0:00:47] CPLX 2.6} 33. f3 {[%emt 0:00:20] CPLX 2.7 71 (Ke1-f1) (=26)} ({White should try} 33. Kf1 $16) 33... Nc5 {[%emt 0:00:07] CPLX 2.7 15 (Rc8-b8) (=28)} 34. Qc2 {[%emt 0:00:21] RELBLUND 75 (Qd3-d1) (=27)} (34. Qd1 $16 {Strongly threatening Bxc5.} Ra3 35. Kf2) 34... Rca8 $11 {[%emt 0:00:09] CPLX 3.5} 35. Kf2 {[%emt 0:00:40] CPLX 3.5 21 (Qc2-d1) (=27)} (35. Qd1 $5 {[%cal Re1f2]}) 35... Qc8 {[%emt 0:00:25] [#] MISS-Ra4-a2 91 (Ra4-a2) (=29)} (35... Ra2 $11 {remains equal.} 36. Qd1 Na4) 36. Rhe1 $2 {[%emt 0:00:34] MISSDEEP-Kf2-g3 244 (Kf2-g3) (=34)} (36. Kg3 $1 $16 {stays on course.}) 36... Ra2 $36 {[%emt 0:00:14][%mdl 2048] Black has strong initiative. EASY} 37. Qd1 {[%emt 0:00:02] [#] CPLX 4.4} Nxe4+ $1 {[%emt 0:00:30][%mdl 64] Deflection. EASY} 38. fxe4 $4 {[%emt 0:01:16][%mdl 8192] Loses the game. RELBLUND 321 (Kf2-g1) (=42)} (38. Kg1 $17) 38... Qxg4 $19 {[%emt 0:00:02] EASY. Black is clearly winning.} 39. Rh1 {[%emt 0:00:08] CPLX 5.8 60 (Be3-d2) (=42)} Qxe4 {[%emt 0:00:14] EASY} 40. Rh3 {[%emt 0:01:31] CPLX 5.8 46 (Be3-d2) (=42)} f5 {[%emt 0:00:10] CPLX 5.8 64 (g5-g4) (=27)} 41. Qh1 {[%emt 0:00:08] BESTDEEP} Qg4 {[%emt 0:00:32] CPLX 6.5} 42. Qf3 {[%emt 0:00:03] EASY} Qxf3+ {[%emt 0:00:02] CPLX 6.5} 43. Rxf3 {[%emt 0:00:05] RECAPT} f4 {[%emt 0:00:01] ...g4 is the strong threat. EASY} 44. Rg1 {[%emt 0:00:06] CPLX 3.6 160 (Kf2-e1) (=42)} e4 {[%emt 0:00:34] EASY} ({Inferior is} 44... fxe3+ 45. Kxe3 Rc8 46. Rf7 $17) 45. Rh3 {[%emt 0:00:05] CPLX 4.0 244 (Rf3xf4) (=47)} Rc2 {[%emt 0:00:24] CPLX 3.9 316 (f4-f3) (=31)} 46. Re1 {[%emt 0:00:58] CPLX 4.0 139 (Rg1-c1) (=49)} f3 {[%emt 0:00:36] Weighted Error Value: White=0.62/Black=0.40} ({Avoid the trap} 46... fxe3+ $2 47. Rxe3 Ra4 48. Kf1 $19) (46... Bxc3 $142 47. Rc1 fxe3+ 48. Rxe3 Rxc1 49. Rxc3 Rh1) 0-1

[Event "Chinese League Div-A Rapid 2022"]
[Site "Fuling,Chongqing"]
[Date "2022.09.19"]
[Round "11.8"]
[White "Pang, Tao"]
[Black "Bai, Jinshi"]
[Result "1/2-1/2"]
[ECO "D94"]
[WhiteElo "2427"]
[BlackElo "2586"]
[Annotator "TA"]
[PlyCount "65"]
[EventDate "2022.09.07"]
[EventType "team-tourn"]
[EventCountry "CHN"]
[SourceTitle "playchess.com"]
[Source "ChessBase"]
[SourceQuality "1"]
[TimeControl "1500+10"]

{[%evp 27,65,37,34,25,23,26,41,44,34,19,40,28,13,25,30,0,4,4,5,4,5,0,1,-17,-14,-9,-16,-16,-8,-8,-7,-59,-69,-80,-8,-13,-8,-8,0,-14]} 1. Nf3 {[%emt 0:00:02]} d5 {[%emt 0:00:06]} 2. d4 {[%emt 0:00:01]} Nf6 {[%emt 0:00:02]} 3. c4 {[%emt 0:00:04]} c6 {[%emt 0:00:04]} 4. e3 {[%emt 0:00:04]} g6 {[%emt 0:00:03]} 5. Nc3 {[%emt 0:00:11]} Bg7 {[%emt 0:00:02]} 6. Bd3 {[%emt 0:00:26]} O-O {[%emt 0:00:08]} 7. O-O {[%emt 0:00:02]} Bg4 {[%emt 0:00:12]} 8. h3 {[%emt 0:00:04]} Bxf3 {[%emt 0:00:03]} 9. Qxf3 {[%emt 0:00:01]} dxc4 {[%emt 0:00:04]} 10. Bxc4 {[%emt 0:00:02]} Nbd7 {[%emt 0:00:01]} 11. Rd1 {[%emt 0:01:16]} e5 {[%emt 0:00:02]} 12. d5 {[%emt 0:01:01]} e4 {[%emt 0:00:04]} 13. Nxe4 {[%emt 0:00:56]} Nxe4 {[%emt 0:00:03]} 14. Qxe4 {[%emt 0:00:10]} Nb6 {[%emt 0:00:04]} 15. Bb3 {[%emt 0:01:05] D94: Grünfeld: 4 Nf3 Bg7 5 e3.} cxd5 {[%emt 0:00:14]} 16. Qf3 {[%emt 0:02:07]} Qf6 {[%emt 0:00:25]} 17. Qxf6 {[%emt 0:00:24] White is slightly better.} ({Of course not} 17. Bxd5 Nxd5 18. Rxd5 Qxf3 19. gxf3 Rfd8 $11) 17... Bxf6 {[%emt 0:00:24]} 18. Bd2 {[%emt 0:00:19] [#]} a5 $146 {[%emt 0:04:30]} ({Predecessor:} 18... Bxb2 19. Rab1 Bf6 20. Ba5 Nc4 21. Rxd5 Nxa5 22. Rxa5 b6 23. Ra6 Rfd8 24. Bd1 Rd2 {1-0 (52) Cvitan,O (2510)-Campora,D (2550) Switzerland 1995}) 19. Bc3 {[%emt 0:00:41]} Bxc3 {[%emt 0:00:02]} 20. bxc3 {[%emt 0:00:01]} Rfd8 {[%emt 0:00:58]} 21. a4 {[%emt 0:01:39]} Rac8 {[%emt 0:00:32]} 22. Rd3 {[%emt 0:00:09]} Rd7 {[%emt 0:03:37]} 23. Rb1 {[%emt 0:00:50]} Rc5 {[%emt 0:00:37]} 24. Bd1 {[%emt 0:02:05]} Nc4 {[%emt 0:00:02]} 25. Bf3 {[%emt 0:01:00]} Ne5 {[%emt 0:02:07]} 26. Rd4 {[%emt 0:00:01]} Nxf3+ {[%emt 0:01:36]} 27. gxf3 {[%emt 0:00:02]} Rxc3 $11 {[%emt 0:00:02][%mdl 4096] Endgame KRR-KRR} 28. Rb5 {[%emt 0:00:02][%csl LRa5,LRd5] Inhibits Rc5.} Rc4 {[%emt 0:00:05]} 29. Rdxd5 {[%emt 0:01:38]} (29. Rxa5 $11 Rxd4 30. exd4) 29... Rxd5 $15 {[%emt 0:00:06]} 30. Rxd5 {[%emt 0:00:01]} b6 {[%emt 0:00:18]} (30... Rxa4 $17 {...b6 is the strong threat.} 31. Rb5 Ra1+ 32. Kg2 a4 33. Rxb7 a3) 31. Rd4 {[%emt 0:00:55] The position is equal.} Rc5 {[%emt 0:07:39]} 32. Rd6 {[%emt 0:00:55]} Rc4 {[%emt 0:00:08]} 33. Rd4 {[%emt 0:00:02] Weighted Error Value: White=0.12 (very precise) /Black=0.08 (flawless)} 1/2-1/2

[Event "Chinese League Div-A Rapid 2022"]
[Site "Fuling,Chongqing"]
[Date "2022.09.19"]
[Round "11.9"]
[White "Zhai, Mo"]
[Black "Shao, Qiyu"]
[Result "1-0"]
[ECO "D85"]
[WhiteElo "2374"]
[BlackElo "1467"]
[Annotator "TA"]
[PlyCount "43"]
[EventDate "2022.09.07"]
[EventType "team-tourn"]
[EventCountry "CHN"]
[SourceTitle "playchess.com"]
[Source "ChessBase"]
[SourceQuality "1"]
[TimeControl "1500+10"]

{[%evp 20,43,60,54,94,99,167,160,146,150,445,435,432,445,499,495,482,490,580,563,645,659,648,643,816,812]} 1. d4 {[%emt 0:00:03]} Nf6 {[%emt 0:00:01]} 2. c4 {[%emt 0:00:01]} g6 {[%emt 0:00:01]} 3. Nc3 {[%emt 0:00:01]} d5 {[%emt 0:00:02]} 4. cxd5 {[%emt 0:00:02]} Nxd5 {[%emt 0:00:01]} 5. e4 {[%emt 0:00:01]} Nxc3 {[%emt 0:00:03]} 6. bxc3 {[%emt 0:00:02][%cal Bb2c3,Bc3d4,Bd4d5,Bd5d6][%mdl 32]} Bg7 {[%emt 0:00:01]} 7. Nf3 {[%emt 0:00:01]} c5 {[%emt 0:00:05]} 8. Be3 {[%emt 0:00:02]} cxd4 {[%emt 0:00:04]} 9. cxd4 {[%emt 0:00:02]} Nc6 {[%emt 0:00:14]} 10. Be2 {[%emt 0:02:01]} O-O {[%emt 0:01:03]} 11. O-O {[%emt 0:00:27] CPLX 2.4} e5 {[%emt 0:00:49] CPLX 2.2 40 (Bc8-g4) (=40). D85: Exchange Grünfeld: Unusual White 7th moves and lines with 7 Nf3.} 12. d5 {[%emt 0:00:20] EASY} Ne7 {[%emt 0:00:27] [#] CPLX 2.4 68 (Nc6-a5) (=54)} (12... Na5 $16 {was called for.}) 13. Bc5 $146 {[%emt 0:00:14] CPLX 2.1} ({Predecessor:} 13. Qb3 b6 14. Rac1 Bb7 15. Bg5 Qd7 16. Rc2 Rac8 17. Bc4 Qd6 18. Bc1 Kh8 19. Ba3 Qf6 20. Rfc1 Rfd8 21. Qe3 Bf8 22. Bb2 Qd6 23. Bxe5+ Qxe5 24. Nxe5 Ng8 25. Nxf7+ {1-0 (25) Bielfeldt,M (1506)-Dorn,A Gross Groenau 2008}) 13... Re8 {[%emt 0:00:25] BESTDEEP. White is clearly better.} 14. Qb3 {[%emt 0:00:38] White is more active.} Kh8 $2 {[%emt 0:00:42] [#] CPLX 2.5 295 (b7-b6) (=101)} (14... b6 $16 {is a better defense.}) 15. Ng5 {[%emt 0:00:19] CPLX 2.5=>BLUNDERREACT. White is clearly winning.} Rf8 {[%emt 0:02:03] CPLX 3.2 0 (Kh8-g8) (=81)} 16. d6 {[%emt 0:00:24] BESTDEEP} Nc6 {[%emt 0:02:32] CPLX 3.3 54 (Ne7-g8) (=76)} 17. Nxf7+ {[%emt 0:01:47] EASY} Rxf7 {[%emt 0:00:02] RECAPT} 18. Qxf7 {[%emt 0:00:02] RECAPT} b6 {[%emt 0:00:11] CPLX 3.9 90 (Ra8-b8) (=68)} 19. Be3 {[%emt 0:00:05] CPLX 4.1} Nd4 {[%emt 0:01:44] CPLX 4.1 82 (Qd8xd6) (=70)} 20. Bxd4 {[%emt 0:00:33] CPLX 4.7} exd4 {[%emt 0:00:03] RECAPT} 21. e5 {[%emt 0:00:50] BESTDEEP} Bxe5 {[%emt 0:00:27] EVAL 173 (Bc8-f5) (=73)} 22. Qd5 {[%emt 0:00:04][%csl LRa8,LRe5] White took control after the opening.  Weighted Error Value: White=0.00 (flawless) /Black=0.75} 1-0

[Event "Chinese League Div-A Rapid 2022"]
[Site "Fuling,Chongqing"]
[Date "2022.09.19"]
[Round "11.10"]
[White "Yan, Tianqi"]
[Black "Sun, Fanghui"]
[Result "1-0"]
[ECO "B85"]
[WhiteElo "2188"]
[BlackElo "2182"]
[Annotator "NA RC"]
[PlyCount "51"]
[EventDate "2022.09.07"]
[EventType "team-tourn"]
[EventCountry "CHN"]
[SourceTitle "playchess.com"]
[Source "ChessBase"]
[SourceQuality "1"]
[TimeControl "1500+10"]

1. e4 {[%emt 0:00:02]} c5 {[%emt 0:00:01]} 2. Nf3 {[%emt 0:00:01]} d6 {[%emt 0:00:01]} 3. d4 {[%emt 0:00:02]} cxd4 {[%emt 0:00:02]} 4. Nxd4 {[%emt 0:00:02]} Nf6 {[%emt 0:00:02]} 5. Nc3 {[%emt 0:00:02]} a6 {[%emt 0:00:01]} 6. Be2 {[%emt 0:00:02]} e6 {[%emt 0:00:02]} 7. O-O {[%emt 0:00:03]} Qc7 {[%emt 0:00:01]} 8. f4 {[%emt 0:00:02]} Be7 {[%emt 0:00:02]} 9. Be3 {[%emt 0:00:02]} O-O {[%emt 0:00:11]} 10. g4 {[%emt 0:00:03]} Nc6 {[%emt 0:01:41]} 11. g5 {[%emt 0:01:06]} Nd7 {[%emt 0:00:20]} 12. f5 {[%emt 0:00:32]} Nxd4 {[%emt 0:02:56]} 13. Qxd4 {[%emt 0:00:10]} Rd8 {[%emt 0:03:19]} 14. f6 {[%emt 0:07:22]} Bf8 {[%emt 0:00:10]} 15. Rf3 {[%emt 0:00:21]} d5 {[%emt 0:02:54]} 16. exd5 {[%emt 0:00:54]} Bc5 {[%emt 0:00:03]} 17. Qh4 {[%emt 0:02:28]} Bxe3+ {[%emt 0:03:27]} 18. Rxe3 {[%emt 0:00:02]} Qc5 {[%emt 0:00:15]} 19. Qf2 {[%emt 0:01:23]} exd5 {[%emt 0:00:43]} 20. b4 {[%emt 0:00:21]} Qc6 {[%emt 0:01:07]} 21. Bd3 {[%emt 0:02:12]} Nf8 {[%emt 0:02:20]} 22. fxg7 {[%emt 0:03:42]} Ng6 {[%emt 0:00:32]} 23. Rf1 {[%emt 0:00:25]} Be6 {[%emt 0:00:46]} 24. Bxg6 {[%emt 0:00:50]} hxg6 {[%emt 0:00:49]} 25. Rh3 {[%emt 0:01:06]} f5 {[%emt 0:03:42]} 26. Qd4 {[%emt 0:00:49]} 1-0

[Event "Chinese League Div-A Rapid 2022"]
[Site "Fuling,Chongqing"]
[Date "2022.09.19"]
[Round "11.11"]
[White "Li, Haoyu"]
[Black "Peng, Xiongjian"]
[Result "1/2-1/2"]
[ECO "D14"]
[WhiteElo "2369"]
[BlackElo "2454"]
[Annotator "TA"]
[PlyCount "31"]
[EventDate "2022.09.07"]
[EventType "team-tourn"]
[EventCountry "CHN"]
[SourceTitle "playchess.com"]
[Source "ChessBase"]
[SourceQuality "1"]
[TimeControl "1500+10"]

{[%evp 29,31,0,0,0]} 1. d4 {[%emt 0:00:03]} d5 {[%emt 0:00:07]} 2. c4 {[%emt 0:00:04]} c6 {[%emt 0:00:07]} 3. cxd5 {[%emt 0:00:10]} cxd5 {[%emt 0:00:06]} 4. Nc3 {[%emt 0:00:04]} Nf6 {[%emt 0:00:17]} 5. Nf3 {[%emt 0:00:04]} Nc6 {[%emt 0:00:08]} 6. Bf4 {[%emt 0:00:12]} Bf5 {[%emt 0:00:17]} 7. e3 {[%emt 0:00:05]} e6 {[%emt 0:00:15]} 8. Bd3 {[%emt 0:00:13]} Bxd3 {[%emt 0:00:22]} 9. Qxd3 {[%emt 0:00:08]} Bd6 {[%emt 0:00:07]} 10. Bxd6 {[%emt 0:00:15]} Qxd6 {[%emt 0:00:11]} 11. O-O {[%emt 0:00:14]} O-O {[%emt 0:00:06]} 12. Nb5 {[%emt 0:00:25] [#]} Qe7 $146 {[%emt 0:01:14]} ({Predecessor:} 12... Qb4 13. a3 Qe7 14. Nc3 Qd6 15. Nb5 Qe7 16. Nc3 Qd6 17. Nb5 Qe7 {½-½ (17) Garcia,J (2444)-Gomez,J (2481) Ho Chi Minh City 2017}) 13. Nc3 {[%emt 0:01:01]} Qd6 {[%emt 0:04:01]} 14. Nb5 {[%emt 0:04:25]} Qe7 {[%emt 0:03:24]} 15. Nc3 {[%emt 0:01:50]} Qd6 {[%emt 0:01:06]} 16. Nb5 {[%emt 0:00:17] A rather calm draw. D14: Slav Defence: Exchange variation with ...Bf5.} 1/2-1/2

[Event "Chinese League Div-A Rapid 2022"]
[Site "Fuling,Chongqing"]
[Date "2022.09.19"]
[Round "11.12"]
[White "Li, Chao b"]
[Black "Wan, Yunguo"]
[Result "1/2-1/2"]
[ECO "C01"]
[WhiteElo "2679"]
[BlackElo "2508"]
[Annotator "TA"]
[PlyCount "29"]
[EventDate "2022.09.07"]
[EventType "team-tourn"]
[EventCountry "CHN"]
[SourceTitle "playchess.com"]
[Source "ChessBase"]
[SourceQuality "1"]
[TimeControl "1500+10"]

{[%evp 13,29,8,14,17,28,0,11,0,15,3,4,-7,-9,-9,-8,-38,-33,-40]} 1. e4 {[%emt 0:00:41]} e6 {[%emt 0:00:28]} 2. d4 {[%emt 0:00:20]} d5 {[%emt 0:00:23]} 3. exd5 {[%emt 0:00:19]} exd5 {[%emt 0:00:10]} 4. Nf3 {[%emt 0:00:05]} Nf6 {[%emt 0:00:32]} 5. Bd3 {[%emt 0:00:03]} Bd6 {[%emt 0:00:06]} 6. Qe2+ {[%emt 0:00:27]} Qe7 {[%emt 0:02:45]} 7. Qxe7+ {[%emt 0:01:16]} Kxe7 $1 {[%emt 0:00:05][%mdl 4] is now more promising than 7...Bxe7.} 8. O-O {[%emt 0:00:08] C01: French: Exchange Variation.} Re8 {[%emt 0:01:07]} 9. Bg5 {[%emt 0:01:26]} h6 {[%emt 0:05:30]} 10. Bh4 {[%emt 0:02:28] The position is equal.} Nbd7 {[%emt 0:01:55]} 11. Re1+ {[%emt 0:00:21]} Kf8 {[%emt 0:00:16]} 12. Nbd2 {[%emt 0:00:04]} Rxe1+ {[%emt 0:00:30]} 13. Rxe1 {[%emt 0:00:04] [#]} Nh5 $146 {[%emt 0:04:58]} ({Predecessor:} 13... c6 14. c3 Nh5 15. Bc2 b6 16. Nf1 Ba6 17. Ne3 g6 18. Ng4 Kg7 19. Nge5 Nxe5 20. dxe5 Bc5 21. b4 Bf8 22. e6 Re8 23. e7 {1-0 (25) Aveskulov,V (2526)-Hernandez,G (2371) ICC INT 2009}) 14. Bg3 {[%emt 0:04:24]} Nxg3 {[%emt 0:00:50]} 15. hxg3 {[%emt 0:00:12] Weighted Error Value: White=0.14 (very precise) /Black=0.04 (flawless)} 1/2-1/2

[Event "Chinese League Div-A Rapid 2022"]
[Site "Fuling,Chongqing"]
[Date "2022.09.19"]
[Round "11.13"]
[White "Zhang, Di"]
[Black "Zhang, Pengxiang"]
[Result "1/2-1/2"]
[ECO "D10"]
[WhiteElo "2108"]
[BlackElo "2564"]
[Annotator "TA"]
[PlyCount "32"]
[EventDate "2022.09.07"]
[EventType "team-tourn"]
[EventCountry "CHN"]
[SourceTitle "playchess.com"]
[Source "ChessBase"]
[SourceQuality "1"]
[TimeControl "1500+10"]

{[%evp 13,32,21,25,18,15,15,20,11,15,11,50,53,50,46,58,40,48,40,66,5,38]} 1. d4 {[%emt 0:00:03]} d5 {[%emt 0:00:11]} 2. c4 {[%emt 0:00:01]} c6 {[%emt 0:00:02]} 3. cxd5 {[%emt 0:00:28]} cxd5 {[%emt 0:00:04]} 4. Nc3 {[%emt 0:00:04]} Nf6 {[%emt 0:00:03]} 5. Bf4 {[%emt 0:00:07]} Nc6 {[%emt 0:00:47]} 6. e3 {[%emt 0:00:04]} a6 {[%emt 0:00:45]} 7. Bd3 {[%emt 0:00:20]} Bg4 {[%emt 0:00:32]} 8. Qb3 {[%emt 0:00:41] D10: Slav Defence: 3 cxd5 (without early Nf3) and 3 Nc3.} Na5 {[%emt 0:00:23]} 9. Qc2 {[%emt 0:00:11]} Nc6 {[%emt 0:00:42]} 10. a3 {[%emt 0:03:33]} Rc8 {[%emt 0:02:39]} 11. h3 {[%emt 0:00:18]} Bd7 {[%emt 0:01:04]} 12. Nf3 {[%emt 0:00:10]} e6 {[%emt 0:00:03]} 13. O-O {[%emt 0:00:10]} Be7 {[%emt 0:00:16] [#]} 14. Rac1 $146 {[%emt 0:01:13]} ({Predecessor:} 14. Bh2 b5 15. Rfc1 Na5 16. Ne5 Nc4 17. e4 Nxe5 18. dxe5 Nxe4 19. Bxe4 dxe4 20. Qxe4 {½-½ (44) Gavin Roche,E (2278)-Horton,J (2137) Aragon 2009}) 14... O-O {[%emt 0:00:08]} 15. Qe2 {[%emt 0:02:47]} b5 {[%emt 0:03:24]} 16. a4 {[%emt 0:01:59] White is more active.} (16. b4 $14) 16... Nb4 {[%emt 0:01:29] Weighted Error Value: White=0.14 (very precise) /Black=0.08 (flawless)} 1/2-1/2

[Event "Chinese League Div-A Rapid 2022"]
[Site "Fuling,Chongqing"]
[Date "2022.09.19"]
[Round "11.14"]
[White "Zhang, Lanlin"]
[Black "Wang, Yu A."]
[Result "1/2-1/2"]
[ECO "C47"]
[WhiteElo "2135"]
[BlackElo "2271"]
[Annotator "NA RC"]
[PlyCount "69"]
[EventDate "2022.09.07"]
[EventType "team-tourn"]
[EventCountry "CHN"]
[SourceTitle "playchess.com"]
[Source "ChessBase"]
[SourceQuality "1"]
[TimeControl "1500+10"]

1. e4 {[%emt 0:00:06]} e5 {[%emt 0:00:02]} 2. Nf3 {[%emt 0:01:23]} Nc6 {[%emt 0:00:02]} 3. d4 {[%emt 0:00:22]} exd4 {[%emt 0:00:03]} 4. Nxd4 {[%emt 0:00:02]} Nf6 {[%emt 0:00:12]} 5. Nc3 {[%emt 0:00:05]} Bb4 {[%emt 0:00:02]} 6. Nxc6 {[%emt 0:00:02]} bxc6 {[%emt 0:00:02]} 7. Bd3 {[%emt 0:00:37]} d5 {[%emt 0:00:06]} 8. exd5 {[%emt 0:00:03]} cxd5 {[%emt 0:00:02]} 9. O-O {[%emt 0:00:03]} O-O {[%emt 0:00:04]} 10. Bg5 {[%emt 0:00:12]} c6 {[%emt 0:00:01]} 11. Qf3 {[%emt 0:00:01]} Bd6 {[%emt 0:02:45]} 12. Rae1 {[%emt 0:02:43]} h6 {[%emt 0:01:28]} 13. Bxf6 {[%emt 0:05:36]} Qxf6 {[%emt 0:00:03]} 14. Qxf6 {[%emt 0:00:02]} gxf6 {[%emt 0:00:01]} 15. Ne2 {[%emt 0:00:01]} Rb8 {[%emt 0:01:45]} 16. b3 {[%emt 0:00:06]} Bd7 {[%emt 0:00:35]} 17. Ng3 {[%emt 0:00:03]} Be5 {[%emt 0:01:01]} 18. Nf5 {[%emt 0:00:07]} Bxf5 {[%emt 0:00:15]} 19. Bxf5 {[%emt 0:00:02]} c5 {[%emt 0:01:01]} 20. Rd1 {[%emt 0:00:15]} Rbd8 {[%emt 0:00:36]} 21. c4 {[%emt 0:00:08]} dxc4 {[%emt 0:01:11]} 22. bxc4 {[%emt 0:00:01]} Rxd1 {[%emt 0:00:59]} 23. Rxd1 {[%emt 0:00:02]} Rb8 {[%emt 0:00:01]} 24. Rb1 {[%emt 0:00:01]} Rxb1+ {[%emt 0:00:02]} 25. Bxb1 {[%emt 0:00:01]} Kf8 {[%emt 0:00:05]} 26. g3 {[%emt 0:00:03]} Ke7 {[%emt 0:00:03]} 27. Kf1 {[%emt 0:00:01]} Bd4 {[%emt 0:00:08]} 28. Ke2 {[%emt 0:00:02]} Ke6 {[%emt 0:00:37]} 29. Bc2 {[%emt 0:00:01]} f5 {[%emt 0:00:41]} 30. f4 {[%emt 0:00:11]} Bg1 {[%emt 0:00:27]} 31. h3 {[%emt 0:00:03]} Bd4 {[%emt 0:00:01]} 32. g4 {[%emt 0:00:05]} fxg4 {[%emt 0:00:02]} 33. hxg4 {[%emt 0:00:01]} Bg1 {[%emt 0:01:32]} 34. Bb1 {[%emt 0:00:01]} Bh2 {[%emt 0:02:13]} 35. Kf3 {[%emt 0:00:17]} 1/2-1/2